fUSD/lending_fUSD_20251023
["ID","MTS","AMOUNT","RATE_DAILY","PERIOD"]
[392173291,1761233444295,-900.0,0.000448,16]
[392173292,1761233444305,-2849.0782,0.0004482,25]
[392173293,1761233444316,-9494.44935762,0.0004486,3]
[392173294,1761233444326,-8366.5553813,0.00044876,3]
[392173295,1761233444336,-172.0,0.00044877,90]
[392173296,1761233444346,-644.42024983,0.00044878,2]
[392173297,1761233444358,-300.34,0.00044878,120]
[392173298,1761233444368,-500.0,0.00044878,120]
[392173299,1761233444379,-9494.44935762,0.00044879,3]
[392173300,1761233444390,-1957.0,0.0004488,120]
[392173301,1761233444400,-150.33,0.0004488,2]
[392173302,1761233444410,-8366.5553813,0.00044883,3]
[392173303,1761233444420,-5000.0,0.00044884,120]
[392173304,1761233444430,-1672.0,0.00044889,7]
[392173305,1761233444440,-9494.44935762,0.00044889,3]
[392173306,1761233444450,-8366.5553813,0.00044889,3]
[392173307,1761233444462,-9494.44935762,0.0004489,3]
[392173308,1761233444473,-8366.5553813,0.0004489,3]
[392173309,1761233444484,-3486.0,0.00044897,2]
[392173310,1761233444495,-903.0,0.00044897,2]
[392173311,1761233444506,-1184.0,0.00044897,2]
[392173312,1761233444517,-1425.0,0.00044898,2]
[392173313,1761233444528,-851.5325,0.000449,120]
[392173314,1761233444538,-1100.0,0.000449,16]
[392173315,1761233444548,-14009.33427941,0.000449,60]
[392173316,1761233444560,-220.69940038,0.000449,2]
[392173317,1761233444570,-189.04357628,0.000449,2]
[392173318,1761233444581,-8366.5553813,0.000449,3]
[392173319,1761233444591,-250.0,0.00044909,120]
[392173320,1761233444605,-500.0,0.00044909,120]
[392173321,1761233444616,-500.0,0.00044909,120]
[392173322,1761233444625,-237.75,0.00044909,120]
[392173323,1761233444635,-500.0,0.00044909,120]
[392173324,1761233444646,-5847.75548597,0.0004491,15]
[392173325,1761233444655,-7494.01879374,0.0004492,120]
[392173326,1761233444669,-189.04357626,0.00044935,2]
[392173327,1761233444679,-808.04937278,0.00044942,2]
[392173328,1761233444689,-1515.2399235,0.00044946,2]
[392173329,1761233444699,-8366.5553813,0.00044954,3]
[392173330,1761233444709,-16733.1107626,0.0004496,3]
[392173331,1761233444719,-8366.5553813,0.00044964,3]
[392173332,1761233444730,-8366.5553813,0.00044964,3]
[392173333,1761233444740,-8366.5553813,0.00044969,3]
[392173334,1761233444751,-189.04357626,0.0004497,2]
[392173335,1761233444762,-75298.9984317,0.0004497,3]
[392173336,1761233444772,-853.796242,0.00044973,120]
[392173337,1761233444782,-853.796242,0.00044973,120]
[392173339,1761233444793,-853.796242,0.00044973,120]
[392173340,1761233444803,-853.796242,0.00044973,120]
[392173341,1761233444814,-16733.1107626,0.00044974,3]
[392173342,1761233444824,-8366.5553813,0.00044978,3]
[392173343,1761233444834,-8366.5553813,0.00044979,3]
[392173344,1761233444845,-168.93159631,0.0004498,2]
[392173345,1761233444859,-853.796242,0.0004498,120]
[392173346,1761233444869,-853.796242,0.0004498,120]
[392173347,1761233444880,-853.796242,0.0004498,120]
[392173348,1761233444890,-853.796242,0.0004498,120]
[392173349,1761233444900,-500.0,0.0004498,120]
[392173350,1761233444911,-150.33,0.0004498,2]
[392173351,1761233444921,-201.37649605,0.00044983,120]
[392173352,1761233444931,-500.0,0.00044983,120]
[392173353,1761233444941,-500.0,0.00044983,120]
[392173354,1761233444951,-500.0,0.00044983,120]
[392173355,1761233444962,-500.0,0.00044983,120]
[392173356,1761233444973,-500.0,0.00044983,120]
[392173357,1761233444983,-1342.5,0.00044983,120]
[392173358,1761233444994,-38323.1115444,0.00044984,2]
[392173359,1761233445003,-1542.0,0.00044986,120]
[392173360,1761233445013,-500.0,0.00044988,120]
[392173361,1761233445023,-172.01,0.00044988,120]
[392173362,1761233445033,-211.43,0.00044988,120]
[392173363,1761233445043,-1000.0,0.00044989,120]
[392173364,1761233445053,-995.63702356,0.00044989,120]
[392173365,1761233445063,-500.0,0.00044989,120]
[392173366,1761233445073,-500.0,0.00044989,120]
[392173367,1761233445083,-500.0,0.00044989,120]
[392173368,1761233445094,-500.0,0.00044989,120]
[392173369,1761233445106,-500.0,0.00044989,120]
[392173370,1761233445116,-500.0,0.00044989,120]
[392173371,1761233445125,-500.0,0.00044989,120]
[392173372,1761233445134,-500.0,0.00044989,120]
[392173373,1761233445144,-500.0,0.00044989,120]
[392173374,1761233445154,-500.0,0.00044989,120]
[392173375,1761233445164,-500.0,0.00044989,120]
[392173376,1761233445174,-500.0,0.00044989,120]
[392173377,1761233445184,-250.0,0.00044989,120]
[392173378,1761233445194,-600.0,0.00044989,120]
[392173379,1761233445203,-500.0,0.00044989,120]
[392173380,1761233445213,-500.0,0.00044989,120]
[392173381,1761233445223,-600.0,0.00044989,120]
[392173382,1761233445233,-250.0,0.00044989,120]
[392173383,1761233445243,-500.0,0.00044989,120]
[392173385,1761233445253,-500.0,0.00044989,120]
[392173386,1761233445263,-500.0,0.00044989,120]
[392173387,1761233445274,-600.0,0.00044989,120]
[392173388,1761233445284,-171.35626885,0.00044989,120]
[392173389,1761233445296,-500.0,0.00044989,120]
[392173390,1761233445305,-500.0,0.00044989,120]
[392173391,1761233445315,-500.0,0.00044989,120]
[392173392,1761233445324,-600.0,0.00044989,120]
[392173393,1761233445334,-500.0,0.00044989,120]
[392173394,1761233445344,-500.0,0.00044989,120]
[392173395,1761233445354,-500.0,0.00044989,120]
[392173396,1761233445363,-500.0,0.00044989,120]
[392173397,1761233445373,-500.0,0.00044989,120]
[392173398,1761233445383,-500.0,0.00044989,120]
[392173399,1761233445393,-500.0,0.00044989,120]
[392173400,1761233445402,-500.0,0.00044989,120]
[392173401,1761233445412,-500.0,0.00044989,120]
[392173402,1761233445421,-500.0,0.00044989,120]
[392173403,1761233445431,-500.0,0.00044989,120]
[392173404,1761233445441,-500.0,0.00044989,120]
[392173405,1761233445450,-500.0,0.00044989,120]
[392173406,1761233445459,-500.0,0.00044989,120]
[392173407,1761233445470,-500.0,0.00044989,120]
[392173408,1761233445479,-500.0,0.00044989,120]
[392173409,1761233445489,-500.0,0.00044989,120]
[392173410,1761233445499,-500.0,0.00044989,120]
[392173411,1761233445508,-434.21554519,0.00044989,120]
[392173412,1761233445518,-500.0,0.00044989,120]
[392173413,1761233445527,-500.0,0.00044989,120]
[392173414,1761233445537,-500.0,0.00044989,120]
[392173415,1761233445547,-500.0,0.00044989,120]
[392173416,1761233445557,-500.0,0.00044989,120]
[392173417,1761233445567,-500.0,0.00044989,120]
[392173418,1761233445577,-500.0,0.00044989,120]
[392173419,1761233445586,-500.0,0.00044989,120]
[392173420,1761233445596,-500.0,0.00044989,120]
[392173421,1761233445607,-500.0,0.00044989,120]
[392173422,1761233445617,-500.0,0.00044989,120]
[392173423,1761233445626,-500.0,0.00044989,120]
[392173424,1761233445636,-500.0,0.00044989,120]
[392173425,1761233445645,-500.0,0.00044989,120]
[392173426,1761233445655,-500.0,0.00044989,120]
[392173427,1761233445668,-500.0,0.00044989,120]
[392173428,1761233445677,-500.0,0.00044989,120]
[392173429,1761233445687,-250.0,0.00044989,120]
[392173430,1761233445697,-500.0,0.00044989,120]
[392173432,1761233445706,-500.0,0.00044989,120]
[392173433,1761233445715,-500.0,0.00044989,120]
[392173434,1761233445726,-250.0,0.00044989,120]
[392173435,1761233445735,-500.0,0.00044989,120]
[392173436,1761233445745,-500.0,0.00044989,120]
[392173437,1761233445755,-250.0,0.00044989,120]
[392173438,1761233445767,-250.0,0.00044989,120]
[392173439,1761233445777,-500.0,0.00044989,120]
[392173440,1761233445787,-250.0,0.00044989,120]
[392173441,1761233445797,-250.0,0.00044989,120]
[392173442,1761233445807,-500.0,0.00044989,120]
[392173443,1761233445819,-250.0,0.00044989,120]
[392173444,1761233445828,-250.0,0.00044989,120]
[392173445,1761233445838,-500.0,0.00044989,120]
[392173446,1761233445848,-250.0,0.00044989,120]
[392173447,1761233445858,-250.0,0.00044989,120]
[392173448,1761233445868,-496.19095782,0.00044989,120]
[392173449,1761233445878,-250.0,0.00044989,120]
[392173450,1761233445888,-250.0,0.00044989,120]
[392173451,1761233445898,-250.0,0.00044989,120]
[392173452,1761233445907,-250.0,0.00044989,120]
[392173453,1761233445917,-250.0,0.00044989,120]
[392173454,1761233445927,-414.0,0.00044989,120]
[392173455,1761233445937,-250.0,0.00044989,120]
[392173456,1761233445946,-250.0,0.00044989,120]
[392173457,1761233445955,-429.318,0.00044989,120]
[392173458,1761233445965,-250.0,0.00044989,120]
[392173459,1761233445975,-250.0,0.00044989,120]
[392173460,1761233445984,-445.202766,0.00044989,120]
[392173461,1761233445993,-250.0,0.00044989,120]
[392173462,1761233446003,-250.0,0.00044989,120]
[392173463,1761233446012,-461.67526834,0.00044989,120]
[392173464,1761233446021,-250.0,0.00044989,120]
[392173465,1761233446030,-478.75725327,0.00044989,120]
[392173466,1761233446039,-496.47127165,0.00044989,120]
[392173467,1761233446049,-500.0,0.00044989,120]
[392173468,1761233446058,-53646.05146646,0.0004499,120]
[392173469,1761233446068,-200.0,0.0004499,7]
[392173470,1761233446078,-151.0,0.0004499,120]
[392173471,1761233446088,-200.0,0.0004499,7]
[392173472,1761233446097,-10014.3625329,0.0004499,120]
[392173473,1761233446107,-2849.07819,0.0004499,26]
[392173474,1761233446116,-150.33,0.0004499,2]
[392173475,1761233446125,-150.33,0.0004499,2]
[392173476,1761233446136,-150.33,0.0004499,2]
[392173477,1761233446145,-150.33,0.0004499,2]
[392173478,1761233446154,-150.33,0.0004499,2]
[392173479,1761233446163,-150.33,0.0004499,2]
[392173480,1761233446172,-150.33,0.0004499,2]
[392173481,1761233446181,-258.68487082,0.0004499,7]
[392173482,1761233446190,-500.0,0.00044993,120]
[392173483,1761233446199,-500.0,0.00044993,120]
[392173484,1761233446208,-157.15951726,0.00044995,14]
[392173485,1761233446217,-500.0,0.00044998,120]
[392173486,1761233446227,-500.0,0.00044998,120]
[392173487,1761233446235,-500.0,0.00044998,120]
[392173488,1761233446244,-150.0,0.00044999,2]
[392173489,1761233446253,-591.73192065,0.00044999,2]
[392173490,1761233446263,-150.0,0.00044999,2]
[392173491,1761233446272,-1415.27804723,0.00044999,2]
[392173492,1761233446282,-150.0,0.00044999,2]
[392173493,1761233446291,-6538.61060813,0.00044999,2]
[392173494,1761233446301,-1177.65810365,0.00044999,60]
[392173496,1761233446311,-999.0,0.00044999,120]
[392173497,1761233446320,-552.3,0.00044999,120]
[392173498,1761233446330,-262.93,0.00044999,120]
[392173499,1761233446339,-853.796242,0.00044999,120]
[392173500,1761233446349,-853.796242,0.00044999,120]
[392173501,1761233446359,-853.796242,0.00044999,120]
[392173502,1761233446369,-853.796242,0.00044999,120]
[392173503,1761233446378,-500.0,0.00044999,120]
[392173504,1761233446387,-500.0,0.00044999,120]
[392173505,1761233446511,-500.0,0.00044999,120]
[392173506,1761233446521,-572.78978399,0.00044999,120]
[392173507,1761233446531,-1342.5,0.00044999,120]
[392173508,1761233446540,-1342.5,0.00044999,120]
[392173509,1761233446549,-1342.5,0.00044999,120]
[392173510,1761233446558,-1342.5,0.00044999,120]
[392173511,1761233446568,-1342.5,0.00044999,120]
[392173512,1761233446577,-1342.5,0.00044999,120]
[392173513,1761233446586,-1342.5,0.00044999,120]
[392173514,1761233446595,-1342.5,0.00044999,120]
[392173515,1761233446605,-1342.5,0.00044999,120]
[392173516,1761233446615,-1342.5,0.00044999,120]
[392173517,1761233446624,-1342.5,0.00044999,120]
[392173518,1761233446634,-1342.5,0.00044999,120]
[392173519,1761233446643,-1342.5,0.00044999,120]
[392173520,1761233446653,-218.12,0.00044999,120]
[392173521,1761233446665,-35145.90430246,0.00045,18]
[392173522,1761233446675,-436046.26157613,0.00045,120]
[392173523,1761233446684,-201475.47588403,0.00045,120]
[392173524,1761233446814,-173.52184785,0.00034869,7]
[392173525,1761233446824,-2148.27815215,0.00039899,15]
[392173526,1761233446835,-605.748278,0.00039899,15]
[392173527,1761233446847,-2008.75050245,0.00039899,15]
[392173528,1761233446857,-151.0,0.00044116,120]
[392173529,1761233446866,-6653.36352173,0.00045,120]
[392173530,1761233446878,-2500.43882,0.00045,120]
[392173531,1761233446895,-1113.8,0.00045,120]
[392173532,1761233446906,-2119.68967712,0.00045,120]
[392173810,1761234188720,3725.753314,7.945e-05,2]
[392174078,1761234278486,164.0,0.00027397,120]
[392174079,1761234280797,11000.0,0.00036541,120]
[392174091,1761234304142,-160.19045936,0.000248,2]
[392174111,1761234308940,339.80954064,0.000248,2]
[392174119,1761234314823,-1832.4618672,0.000248,2]
[392174188,1761234319857,-500.0,0.000248,2]
[392174203,1761234328994,-250.0,0.00024916,2]
[392174205,1761234334675,-500.0,0.00024932,2]
[392174206,1761234338399,-207.57998478,0.00025585,2]
[392174224,1761234342780,-869.87116433,0.00025896,2]
[392174242,1761234347531,-1555.36,0.00027,2]
[392174249,1761234351758,-250.0,0.0002739,2]
[392174257,1761234356464,-1200.0,0.00027996,2]
[392174258,1761234356484,-199.15013408,0.00027998,2]
[392174259,1761234360782,-203.76710595,0.00027335,2]
[392174261,1761234368432,-166.76327635,0.00027898,2]
[392174262,1761234372817,-300.0,0.0002873,2]
[392174263,1761234372839,-300.0,0.0002873,2]
[392174264,1761234372861,-1200.0,0.0002873,2]
[392174265,1761234372882,-300.0,0.0002873,2]
[392174267,1761234386075,-184.27125,0.00028876,2]
[392174270,1761234390705,-6380.828969,0.00030084,2]
[392174271,1761234391098,-181.19393604,0.00030236,2]
[392174276,1761234396974,-1498.80606396,0.00030236,2]
[392174277,1761234401174,-903.07967562,0.00030688,120]
[392174293,1761234412651,-391.0,0.00031139,3]
[392174310,1761234434102,-151.0,0.00032129,2]
[392174311,1761234434125,-151.0,0.00032129,2]
[392174312,1761234434152,-151.0,0.00032129,2]
[392174313,1761234434175,-151.0,0.00032129,2]
[392174314,1761234434201,-263.77539905,0.00032129,2]
[392174315,1761234434224,-151.0,0.00032129,2]
[392174316,1761234434246,-151.0,0.00032129,2]
[392174317,1761234434266,-151.0,0.00032473,2]
[392174318,1761234434286,-151.0,0.00032473,2]
[392174319,1761234434306,-151.0,0.00032473,2]
[392174320,1761234434327,-151.0,0.00032473,2]
[392174321,1761234434347,-151.0,0.00032473,2]
[392174322,1761234434368,-151.0,0.00032473,2]
[392174323,1761234434388,-151.0,0.00032473,2]
[392174324,1761234434410,-151.0,0.00032473,2]
[392174325,1761234434434,-175.51237419,0.00032473,2]
[392174326,1761234434455,-235.21507916,0.00032655,3]
[392174369,1761234554076,-366.41400991,0.00033198,2]
[392174370,1761234554100,-160.19045936,0.000349,2]
[392174371,1761234554121,-500.0,0.0003495,2]
[392174372,1761234554141,-500.0,0.0003495,5]
[392174373,1761234554164,-349.13524529,0.0003495,5]
[392174380,1761234570080,-150.86475471,0.0003495,5]
[392174381,1761234570104,-792.10989975,0.00035,3]
[392174382,1761234570125,-293.73673754,0.00035498,2]
[392174413,1761234631754,-591.0,0.00036499,3]
[392174414,1761234631765,-199.0,0.000365,30]
[392174415,1761234631776,-155.0,0.000365,30]
[392174416,1761234631786,-155.0,0.000365,30]
[392174417,1761234631800,-155.0,0.000365,30]
[392174418,1761234631810,-155.0,0.000365,30]
[392174419,1761234631821,-500.0,0.0003795,5]
[392174420,1761234631832,-500.0,0.0003795,5]
[392174421,1761234631842,-500.0,0.0003795,2]
[392174422,1761234631853,-168.0,0.00037979,2]
[392174423,1761234631865,-500.0,0.00038333,2]
[392174424,1761234631876,-877.759,0.00038497,51]
[392174426,1761234631886,-957.57998478,0.00038498,5]
[392174427,1761234631897,-500.0,0.00038498,2]
[392174428,1761234631909,-500.0,0.00038548,2]
[392174429,1761234631919,-500.0,0.00038603,2]
[392174430,1761234631931,-166.66,0.00038612,30]
[392174431,1761234631941,-706.26326246,0.00038881,2]
[392174432,1761234631952,-500.0,0.00038986,2]
[392174433,1761234631963,-166.66,0.00039425,30]
[392174434,1761234631974,-1852.42,0.0003957,2]
[392174435,1761234632159,-176.25,0.00039582,2]
[392174436,1761234632170,-168.0,0.00039649,2]
[392174437,1761234632181,-1006.0,0.0004,5]
[392174439,1761234632192,-166.66,0.00040238,30]
[392174440,1761234632203,-1078.46280819,0.00040449,2]
[392174443,1761234632216,-3362.12719181,0.00040449,2]
[392174444,1761234632227,-1300.0,0.00040449,4]
[392174446,1761234632238,-300.0,0.00040449,4]
[392174449,1761234632248,-150.00000001,0.00040488,4]
[392174450,1761234632258,-150.0,0.00040488,4]
[392174451,1761234632268,-240.3713252,0.00040488,4]
[392174452,1761234632280,-150.0,0.00040488,4]
[392174453,1761234632291,-150.00000001,0.00040488,4]
[392174454,1761234632302,-166.66,0.00041051,30]
[392174455,1761234632312,-636.77373735,0.00041095,2]
[392174456,1761234632322,-186.83068766,0.00041095,31]
[392174457,1761234632332,-500.0,0.00041095,15]
[392174458,1761234632342,-500.0,0.00041095,31]
[392174459,1761234632352,-359.1291185,0.00041095,7]
[392174460,1761234632362,-594.71363046,0.00041095,15]
[392174461,1761234632374,-297.88988284,0.00041095,31]
[392174462,1761234632384,-2269.49782136,0.00041096,120]
[392174463,1761234632396,-953.69217864,0.00041096,120]
[392174464,1761234632406,-401.45,0.00041195,2]
[392174465,1761234632417,-200.0,0.00041436,2]
[392174466,1761234632427,-168.0,0.00041604,2]
[392174467,1761234632436,-1000.0,0.00041839,2]
[392174468,1761234632447,-166.66,0.00041864,30]
[392174469,1761234632456,-500.0,0.00041918,2]
[392174470,1761234632466,-500.0,0.00042,2]
[392174471,1761234632476,-500.0,0.00042575,2]
[392174472,1761234632486,-166.66,0.00042677,30]
[392174473,1761234632495,-174.0,0.00043,90]
[392174474,1761234632505,-150.0,0.00043455,120]
[392174475,1761234632515,-500.0,0.00043835,120]
[392174476,1761234632525,-500.0,0.00043835,120]
[392174477,1761234632534,-470.7653969,0.00043835,120]
[392174478,1761234632544,-500.0,0.00043835,120]
[392174479,1761234632554,-1005.94,0.00043835,30]
[392174480,1761234632564,-160.19045936,0.000439,2]
[392174481,1761234632574,-167.10639585,0.000439,2]
[392174482,1761234632584,-158.8276571,0.00043925,5]
[392174483,1761234632594,-200.0,0.00044,16]
[392174484,1761234632604,-493.47637634,0.00044,30]
[392174485,1761234632620,-19866.52362366,0.00044,30]
[392174486,1761234632630,-150.0,0.00044,120]
[392174487,1761234632642,-476.23156132,0.00044,30]
[392174488,1761234632662,-500.0,0.000441,16]
[392174489,1761234632673,-1005.94,0.00044109,30]
[392174490,1761234632684,-455.0,0.00044184,30]
[392174491,1761234632695,-546.76,0.00044192,30]
[392174492,1761234632707,-700.0,0.000442,16]
[392174493,1761234632724,-1000.0,0.000443,16]
[392174494,1761234632735,-167.10639583,0.0004435,2]
[392174495,1761234632746,-1005.94,0.00044383,30]
[392174496,1761234632757,-1200.0,0.000444,16]
[392174497,1761234632768,-172.60283165,0.00044425,15]
[392174498,1761234632778,-150.0,0.00044425,60]
[392174499,1761234632788,-200.0,0.000445,16]
[392174500,1761234632799,-2484.0976,0.0004455,23]
[392174501,1761234632819,-200.0,0.000446,16]
[392174502,1761234632830,-455.0,0.00044639,30]
[392174503,1761234632841,-1005.94,0.00044657,30]
[392174504,1761234632852,-820.09206155,0.00044689,2]
[392174505,1761234632862,-6621.1058,0.00044689,2]
[392174506,1761234632874,-233.6499,0.00044689,2]
[392174507,1761234632885,-4058.8742,0.00044689,2]
[392174508,1761234632895,-2131.8036,0.00044689,2]
[392174509,1761234632905,-278.9521,0.00044689,2]
[392174510,1761234632916,-200.0,0.000447,16]
[392174511,1761234632926,-543.85742731,0.00044788,120]
[392174512,1761234632936,-173.99087675,0.00044788,120]
[392174513,1761234632946,-5092.1514,0.00044789,2]
[392174514,1761234632956,-1000.0,0.00044789,2]
[392174515,1761234632966,-200.0,0.000448,16]
[392174516,1761234632977,-192.99528511,0.00044803,28]
[392174517,1761234632987,-4286.49923934,0.00044844,15]
[392174518,1761234632997,-4286.49923926,0.00044851,15]
[392174519,1761234633007,-5000.0,0.00044854,120]
[392174520,1761234633017,-3732.23584581,0.00044859,15]
[392174521,1761234633030,-554.26339345,0.00044859,15]
[392174522,1761234633040,-354.48417099,0.00044863,17]
[392174523,1761234633053,-398.09865315,0.00044863,17]
[392174524,1761234633063,-158.41504425,0.00044863,15]
[392174525,1761234633073,-1485.62128708,0.00044863,15]
[392174526,1761234633083,-4286.49923926,0.00044866,15]
[392174527,1761234633094,-885.39733938,0.00044868,15]
[392174528,1761234633153,-34.99349677,0.00044868,15]
[392174529,1761234633170,-565.23045084,0.00044868,15]
[392174530,1761234633180,-4286.49923926,0.00044873,15]
[392174531,1761234633190,-1485.62128699,0.00044873,15]
[392174532,1761234633204,-1485.62128699,0.00044879,15]
[392174533,1761234633214,-4286.49923926,0.00044881,15]
[392174534,1761234633224,-1485.62128699,0.00044884,15]
[392174535,1761234633234,-500.0,0.00044888,120]
[392174536,1761234633246,-500.0,0.00044888,120]
[392174537,1761234633256,-500.0,0.00044888,120]
[392174538,1761234633266,-500.0,0.00044888,2]
[392174539,1761234633276,-500.0,0.00044888,120]
[392174540,1761234633287,-4286.49923926,0.00044888,15]
[392174541,1761234633298,-500.0,0.00044888,120]
[392174542,1761234633307,-476.23156132,0.00044889,120]
[392174543,1761234633318,-1485.62128699,0.00044889,15]
[392174544,1761234633328,-9882.80501682,0.0004489,3]
[392174545,1761234633338,-3486.0,0.00044893,2]
[392174546,1761234633348,-903.0,0.00044893,2]
[392174547,1761234633358,-1485.62128699,0.00044894,15]
[392174548,1761234633368,-4286.49923926,0.00044895,15]
[392174549,1761234633378,-900.0,0.00044899,30]
[392174550,1761234633388,-1485.62128699,0.000449,15]
[392174551,1761234633403,-50000.0,0.000449,120]
[392174552,1761234633413,-700.0,0.000449,16]
[392174553,1761234633423,-9794.53956367,0.000449,120]
[392174554,1761234633434,-5493.0,0.000449,120]
[392174555,1761234633446,-10941.12259598,0.000449,120]
[392174556,1761234633458,-552.221116,0.000449,120]
[392174557,1761234633470,-735.908,0.000449,120]
[392174558,1761234633482,-11361.65144756,0.000449,120]
[392174559,1761234633494,-1035.20177751,0.000449,120]
[392174560,1761234633505,-2779.65103207,0.000449,120]
[392174564,1761234638309,-32857.5793415,0.0003654,15]
[392174565,1761234638319,-167.10639583,0.000448,2]
[392174566,1761234638328,-1184.0,0.00044893,2]
[392174567,1761234638338,-11393.23157721,0.000449,120]
[392174568,1761234638348,-41806.3261073,0.000449,120]
[392174569,1761234638458,-40138.72766535,0.000449,120]
[392174570,1761234638471,-5679.072,0.000449,120]
[392174571,1761234638482,-669.60084203,0.000449,120]
[392174572,1761234638562,-102.79017929,0.000449,120]
[392174573,1761234638574,-485.62768952,0.000449,120]
[392174574,1761234638586,-1323.27193708,0.000449,120]
[392174605,1761234639750,-11263.05646943,0.000449,120]
[392174606,1761234639760,-4286.49923926,0.00044903,15]
[392174607,1761234639770,-1485.62128699,0.00044905,15]
[392174608,1761234639779,-4286.49923926,0.0004491,15]
[392174609,1761234639789,-1485.62128699,0.0004491,15]
[392174610,1761234639799,-2000.0,0.00044918,3]
[392174611,1761234639808,-1005.94,0.00044931,30]
[392174612,1761234639818,-151.0,0.00044932,120]
[392174613,1761234639828,-19765.6100336,0.00044934,3]
[392174614,1761234639838,-5218.32506057,0.00044944,3]
[392174615,1761234639850,-5346.71833883,0.00044944,3]
[392174616,1761234639862,-1990.08,0.00044944,3]
[392174617,1761234639962,-1272.34361006,0.00044944,3]
[392174618,1761234639974,-1649.2114204,0.00044944,3]
[392174619,1761234639986,-1035.02007347,0.00044944,3]
[392174620,1761234639999,-8861.00672097,0.00044944,3]
[392174621,1761234640011,-8992.14675157,0.00044944,3]
[392174622,1761234640022,-750.34978988,0.00044944,3]
[392174623,1761234640035,-9232.46486767,0.00044944,3]
[392174624,1761234640046,-6220.19800912,0.00044944,3]
[392174630,1761234640578,-1449.24682759,0.00044944,3]
[392174631,1761234640590,-12889.61826281,0.00044944,3]
[392174632,1761234640602,-17123.10609903,0.00044944,3]
[392174640,1761234642932,-1378.24524389,0.00044893,2]
[392174641,1761234642943,-732.8950769,0.00044893,2]
[392174642,1761234642956,-364.3657602,0.00044893,2]
[392174643,1761234642968,-73.49391901,0.00044893,2]
[392174644,1761234642977,-1090.11786373,0.00044944,3]
[392174645,1761234643061,-20.13265956,0.00044944,3]
[392174646,1761234643073,-424.394407,0.00044944,3]
[392174647,1761234643086,-2809.88289894,0.00044944,3]
[392174651,1761234643373,-1547.80967412,0.00044944,3]
[392174652,1761234643385,-313.62008107,0.00044944,3]
[392174653,1761234643407,-188.40371866,0.00044944,3]
[392174654,1761234643419,-7795.60850713,0.00044944,3]
[392174655,1761234643433,-1240.0779603,0.00044944,3]
[392174657,1761234646033,-1533.16416282,0.00044944,3]
[392174658,1761234646045,-7114.77475199,0.00044944,3]
[392174659,1761234646139,-51.24206953,0.00044944,3]
[392174660,1761234646177,-12434.59561518,0.00044944,3]
[392174661,1761234646187,-6062.72129079,0.00044944,3]
[392174662,1761234646197,-150.0,0.00044945,120]
[392174663,1761234646211,-476.23156132,0.0004495,3]
[392174664,1761234646221,-476.23156132,0.0004495,3]
[392174665,1761234646230,-500.0,0.00044953,120]
[392174666,1761234646239,-500.0,0.00044953,120]
[392174667,1761234646251,-500.0,0.00044953,120]
[392174668,1761234646261,-202.10065075,0.00044953,2]
[392174669,1761234646271,-341.03372739,0.00044953,120]
[392174670,1761234646283,-500.0,0.00044953,120]
[392174671,1761234646292,-500.0,0.00044953,120]
[392174672,1761234646302,-118593.660202,0.00044954,3]
[392174673,1761234646313,-230383.40905,0.00044954,3]
[392174674,1761234646323,-6062.72129079,0.0004496,3]
[392174675,1761234646332,-382.43061893,0.00044963,120]
[392174676,1761234646343,-500.0,0.00044963,120]
[392174677,1761234646353,-576.74937579,0.00044963,120]
[392174678,1761234646363,-500.0,0.00044963,120]